bitfinex/quotes_ETHUSD_20220101
["timestamp","ask_amount","ask_price","bid_price","bid_amount"]
[1641077700820,1.35117088,3761.0,3760.7,1.3295776]
[1641077701018,1.35117088,3761.0,3760.8,0.6647874]
[1641077701422,1.35117088,3761.0,3760.7,0.66479]
[1641077701621,0.69432257,3761.4,3760.7,0.66479]
[1641077701622,1.35117088,3760.9,3760.7,0.66479]
[1641077701823,1.35117088,3760.9,3760.0,2.92960534]
[1641077701824,1.35117088,3760.9,3760.3,1.32971]
[1641077702021,2.91113602,3760.8,3760.0,2.92960534]
[1641077702270,1.73417088,3760.8,3760.0,1.62169651]
[1641077702465,0.66504,3760.4,3760.0,1.62169651]
[1641077703270,5.35117088,3760.1,3759.3,6.8143]
[1641077703468,5.35117088,3760.1,3759.3,3.8424799]
[1641077704073,5.35117088,3760.1,3759.3,0.6650799]
[1641077704268,1.35117088,3760.0,3759.3,0.6650799]
[1641077704467,1.35117088,3760.0,3759.6,0.66508]
[1641077704669,2.42503123,3759.9,3759.1,2.92960534]
[1641077704870,2.80803123,3759.9,3759.1,2.92960534]
[1641077705070,2.35117088,3759.8,3759.0,1.30790883]
[1641077705271,0.383,3759.7,3759.0,1.30790883]
[1641077705469,2.8111681,3759.7,3759.0,1.30790883]
[1641077705669,0.66526,3759.3,3758.7,1.75365535]
[1641077706028,0.383,3759.2,3758.6,1.30790883]
[1641077706626,2.44636213,3759.1,3758.6,1.30790883]
[1641077706828,0.383,3759.0,3758.6,1.30790883]
[1641077707028,0.383,3759.0,3758.3,1.30790883]
[1641077707029,1.04831,3759.0,3758.3,1.30790883]
[1641077707228,2.44536778,3758.9,3758.3,1.30790883]
[1641077707433,0.383,3758.8,3758.3,1.30790883]
[1641077707631,1.35117088,3758.6,3757.7,1.30790883]
[1641077708029,1.35117088,3758.6,3757.7,1.60790883]
[1641077708429,0.383,3758.5,3757.7,1.60790883]
[1641077708634,0.66538,3758.4,3757.7,1.60790883]
[1641077708831,1.35117088,3758.6,3757.8,2.28200144]
[1641077709030,1.35117088,3758.6,3758.0,0.66525]
[1641077709431,1.35117088,3758.6,3758.1,2.31058128]
[1641077709632,1.35117088,3758.6,3757.8,2.54565001]
[1641077709873,1.35117088,3758.8,3758.2,0.6652046]
[1641077710071,1.35117088,3758.8,3758.4,0.66515]
[1641077710468,1.35117088,3759.1,3758.4,0.66515]
[1641077710673,1.35117088,3759.1,3758.3,3.65249099]
[1641077710869,1.35117088,3759.1,3758.3,3.60434474]
[1641077711070,1.35117088,3759.1,3758.3,3.5991867]
[1641077711273,1.35117088,3759.1,3758.3,3.59110859]
[1641077711472,1.35117088,3759.2,3758.3,3.6295699]
[1641077711670,1.35117088,3759.2,3758.6,0.665124]
[1641077711871,1.35117088,3759.2,3758.4,2.45443133]
[1641077712072,0.0626,3759.7,3758.4,3.85410084]
[1641077712273,0.383,3759.9,3758.4,4.15410084]
[1641077712473,4.20783004,3760.1,3758.5,15.62]
[1641077712674,4.20783004,3760.1,3758.6,19.46072911]
[1641077712873,4.20783004,3760.1,3759.6,0.66498]
[1641077713073,0.665,3760.5,3759.7,2.26364912]
[1641077713074,4.20783004,3760.5,3759.7,2.26364912]
[1641077713519,4.20783004,3760.5,3759.7,2.56364912]
[1641077713924,9.13845652,3761.3,3759.7,2.56364912]
[1641077713925,13.34628656,3761.3,3759.7,2.56364912]
[1641077714121,4.20783004,3761.3,3759.7,2.56364912]
[1641077714424,4.20783004,3761.3,3760.3,0.66488]
[1641077714619,4.87269004,3761.3,3760.3,0.66488]
[1641077714820,0.66486,3761.3,3760.3,0.66488]
[1641077716623,1.07732257,3761.4,3760.4,0.66484]
[1641077716825,0.69432257,3761.4,3760.3,2.9547107]
[1641077717024,0.69432257,3761.4,3760.3,2.2898791]
[1641077717264,0.69432257,3761.4,3760.4,0.66478]
[1641077717464,0.69432257,3761.4,3760.5,3.18077998]
[1641077717862,0.69432257,3761.4,3760.5,3.78077998]
[1641077718063,0.69432257,3761.4,3760.9,0.6646343]
[1641077718267,0.69432257,3761.4,3761.0,2.43565104]
[1641077719465,0.69432257,3761.4,3761.1,0.66465]
[1641077719663,0.69432257,3761.4,3761.1,1.3293]
[1641077719864,0.69432257,3761.4,3761.2,2.28860915]
[1641077720062,0.69432257,3761.4,3761.2,2.31703979]
[1641077720262,0.69432257,3761.4,3761.3,6.351228]
[1641077720665,0.69432257,3761.4,3761.3,4.05]
[1641077722627,0.69432257,3761.4,3761.3,6.41696013]
[1641077722829,0.69432257,3761.4,3761.3,4.05]
[1641077724137,0.69432257,3761.4,3761.3,23.77965549]
[1641077724532,0.69432257,3761.4,3761.3,8.15965549]
[1641077724977,0.69432257,3761.4,3761.3,7.95519358]
[1641077725376,0.69432257,3761.4,3761.3,4.05]
[1641077726179,0.69432257,3761.4,3761.1,3.94372248]
[1641077726378,0.69432257,3761.4,3761.1,1.6292913]
[1641077726979,0.69432257,3761.4,3761.2,2.30430682]
[1641077727278,0.69432257,3761.4,3761.2,2.31036863]
[1641077727480,0.69432257,3761.4,3761.2,2.32081878]
[1641077727678,0.69432257,3761.4,3761.2,2.32196618]
[1641077727878,0.69432257,3761.4,3761.2,2.34910966]
[1641077728078,0.69432257,3761.4,3761.1,1.6292913]
[1641077728279,0.69432257,3761.4,3761.2,2.32090405]
[1641077728515,0.69432257,3761.4,3761.1,1.6292913]
[1641077729321,0.69432257,3761.4,3761.2,2.32463136]
[1641077729517,0.69432257,3761.4,3761.2,2.30300023]
[1641077729718,0.69432257,3761.4,3761.1,1.6292913]
[1641077729918,0.69432257,3761.4,3761.2,2.41302887]
[1641077730120,0.69432257,3761.4,3761.2,2.28202068]
[1641077730319,0.69432257,3761.4,3761.2,2.3670168]
[1641077730522,0.69432257,3761.4,3761.3,4.05]
[1641077731121,0.69432257,3761.4,3761.3,6.34653818]
[1641077731321,0.69432257,3761.4,3761.2,2.33757221]
[1641077731522,1.13677984,3761.7,3761.3,2.34822768]
[1641077731722,1.13677984,3761.7,3761.4,0.66465]
[1641077732366,1.13677984,3761.7,3761.4,1.3292879]
[1641077733567,1.13677984,3761.7,3761.4,0.66465]
[1641077733766,1.13677984,3761.7,3761.2,0.66469]
[1641077733967,1.13677984,3761.7,3761.0,1.3292612]
[1641077735769,1.13677984,3761.7,3761.1,2.28666741]
[1641077736426,1.13677984,3761.7,3761.0,1.3292612]
[1641077736828,1.13677984,3761.7,3761.1,2.28065471]
[1641077737228,1.13677984,3761.7,3761.2,0.6647]
[1641077737429,1.13677984,3761.7,3761.1,2.28209094]
[1641077737628,1.13677984,3761.7,3761.0,1.3292612]
[1641077738434,1.13677984,3761.7,3761.1,2.29873108]
[1641077738628,1.13677984,3761.7,3761.0,1.3292612]
[1641077738828,1.13677984,3761.7,3761.0,3.61090395]
[1641077739428,1.13677984,3761.7,3761.2,0.66468]
[1641077739881,1.13677984,3761.7,3761.3,0.6646534]
[1641077741477,1.13677984,3761.7,3761.4,0.66465]
[1641077743078,1.13677984,3761.7,3761.2,0.66469]
[1641077743516,1.13677984,3761.7,3761.0,1.3292612]
[1641077743517,1.13677984,3761.7,3761.0,3.63595808]
[1641077743717,1.13677984,3761.7,3761.0,3.68995176]
[1641077743918,1.13677984,3761.7,3761.0,3.65770743]
[1641077744120,1.13677984,3761.7,3761.0,1.3292612]
[1641077744319,1.13677984,3761.7,3761.0,3.7096532]
[1641077744521,1.13677984,3761.7,3761.0,1.3292612]
[1641077744719,1.13677984,3761.7,3761.2,0.6647]
[1641077745723,1.13677984,3761.7,3761.0,3.63971036]
[1641077745921,1.13677984,3761.7,3761.0,3.63021812]
[1641077746122,1.13677984,3761.7,3761.0,3.64049534]
[1641077746320,1.13677984,3761.7,3761.0,3.66266588]
[1641077746520,1.13677984,3761.7,3761.1,0.66471]
[1641077748178,1.13677984,3761.7,3760.6,1.32947]
[1641077748381,1.13677984,3761.7,3760.0,3.7985]
[1641077748382,3.92655493,3761.7,3760.0,3.7985]
[1641077748580,4.30955493,3761.7,3759.8,4.64714]
[1641077748780,1.0611,3761.6,3759.8,4.34714]
[1641077748980,2.84259988,3761.5,3759.8,3.6822]
[1641077749182,1.0,3761.4,3759.8,3.6822]
[1641077749381,2.68706649,3761.3,3759.8,3.6822]
[1641077749581,2.68706649,3761.3,3759.7,3.47129997]
[1641077749582,0.66499,3760.7,3759.7,3.47129997]
[1641077749882,0.6650333,3760.8,3759.7,0.13819997]
[1641077750079,3.20667092,3760.8,3759.7,0.13819997]
[1641077750285,3.21099102,3760.8,3759.7,0.13819997]
[1641077750479,3.13860634,3760.8,3759.7,0.13819997]
[1641077750679,0.66505,3760.3,3759.7,0.13819997]
[1641077751119,3.85937598,3760.8,3759.7,0.13819997]
[1641077751321,0.6650333,3760.8,3759.7,0.13819997]
[1641077752720,0.66501,3760.5,3759.7,0.13819997]
[1641077753819,0.66501,3760.5,3759.6,0.3]
[1641077758523,0.66501,3760.5,3759.5,0.965]
[1641077760126,0.66501,3760.5,3759.5,0.665]
[1641077761329,1.66501,3760.5,3759.5,0.665]
[1641077762574,0.66501,3760.5,3759.5,0.665]
[1641077762774,1.66501,3760.5,3759.5,1.3299855]
[1641077763175,0.66501,3760.5,3759.5,1.3299855]
[1641077763574,0.66501,3760.5,3759.6,0.66499]
[1641077768636,2.71729282,3760.7,3759.1,4.4555]
[1641077768637,2.46426732,3760.4,3759.1,4.4555]
[1641077768837,0.66507,3760.1,3759.1,4.4555]
[1641077769046,0.66507,3760.1,3759.1,1.33]
[1641077770175,0.66507,3760.1,3759.2,0.6650499]
[1641077770477,0.66507,3760.1,3759.2,1.3301099]
[1641077771678,1.3595067,3760.3,3759.2,1.3301099]
[1641077772678,1.3595067,3760.3,3759.4,0.66503]
[1641077772879,1.3595067,3760.3,3759.4,0.6650218]
[1641077773079,0.6944667,3760.3,3759.4,0.6650218]
[1641077773280,0.6944667,3760.3,3759.0,7.0342731]
[1641077773535,0.6944667,3760.3,3759.0,5.7042231]
[1641077773735,0.6944667,3760.3,3759.2,1.32997]
[1641077774735,1.3595067,3760.3,3759.2,1.32997]
[1641077775537,1.3595067,3760.3,3759.0,6.0693231]
[1641077776136,3.83830177,3760.3,3759.0,6.0693231]
[1641077776340,1.3595067,3760.3,3759.0,6.0693231]
[1641077776737,3.85205403,3760.3,3759.0,6.0693231]
[1641077776939,0.6651,3760.0,3759.0,6.0693231]
[1641077777277,1.35117088,3759.8,3759.1,1.30790883]
[1641077777677,1.35117088,3759.8,3759.1,1.97298883]
[1641077779682,1.35117088,3759.8,3759.1,0.66508]
[1641077781147,1.35117088,3759.8,3759.3,0.6650429]
[1641077781347,1.35117088,3759.8,3759.5,0.66504]
[1641077781753,1.35117088,3759.7,3759.5,0.66504]
[1641077782550,1.35117088,3759.9,3759.5,0.66504]
[1641077783451,1.35117088,3760.0,3759.5,0.66504]
[1641077783850,1.35117088,3760.0,3759.3,0.6650429]
[1641077784151,1.35117088,3760.0,3759.3,0.3]
[1641077784650,1.35117088,3760.0,3759.2,1.30790883]
[1641077784889,5.16566564,3760.1,3759.1,1.30790883]
[1641077785086,0.66513,3759.8,3759.1,1.30790883]
[1641077785288,0.66513,3759.8,3758.8,1.30790883]
[1641077785289,2.48988046,3759.7,3758.8,1.30790883]
[1641077785688,3.48988046,3759.7,3758.8,1.30790883]
[1641077786492,3.48988046,3759.7,3758.4,1.30790883]
[1641077786493,0.66523,3759.3,3758.4,1.30790883]
[1641077786790,2.75196645,3759.2,3758.4,1.30790883]
[1641077786993,4.08271645,3759.2,3758.4,1.30790883]
[1641077787192,1.35117088,3758.9,3758.3,1.45414348]
[1641077787393,1.35117088,3758.9,3757.9,1.30790883]
[1641077787394,2.54633145,3758.8,3757.9,1.30790883]
[1641077787590,0.66538,3758.4,3757.9,1.30790883]
[1641077787989,0.66538,3758.4,3757.9,1.60790883]
[1641077788641,0.66538,3758.4,3757.9,0.3]
[1641077789138,0.66538,3758.4,3757.8,1.60790883]
[1641077789547,0.66538,3758.4,3757.8,1.30790883]
[1641077790142,0.66538,3758.4,3757.2,1.45414348]
[1641077790143,1.66538,3758.4,3757.7,1.30790883]
[1641077790347,0.66538,3758.4,3757.7,1.30790883]
[1641077790542,2.54036041,3758.3,3757.7,1.30790883]
[1641077790742,0.66547,3758.0,3757.7,1.30790883]
[1641077790949,0.66547,3758.0,3757.4,1.30790883]
[1641077791645,0.66547,3758.0,3757.2,1.30790883]
[1641077792302,0.66547,3758.0,3757.1,1.30790883]
[1641077795006,2.01664088,3758.0,3757.1,1.30790883]
[1641077795408,1.35117088,3758.0,3757.1,1.30790883]
[1641077795607,1.35117088,3758.0,3757.0,1.30790883]
[1641077795914,1.35117088,3758.0,3757.0,1.60790883]
[1641077796150,1.35117088,3758.0,3757.0,1.90790883]
[1641077796451,1.35117088,3758.2,3757.2,1.30790883]
[1641077796654,1.35117088,3758.2,3757.6,0.66534]
[1641077797050,1.35117088,3758.2,3757.6,1.3306635]
[1641077797254,1.35117088,3758.2,3757.6,0.66534]
[1641077797451,1.35117088,3758.2,3757.7,0.3]
[1641077797850,1.35117088,3758.2,3757.3,0.3]
[1641077797851,1.35117088,3758.2,3757.6,0.66529]
[1641077798051,1.35117088,3758.2,3757.7,0.3]
[1641077798456,1.35117088,3758.3,3757.7,0.3]
[1641077798653,1.35117088,3758.3,3757.8,0.6652962]
[1641077798955,1.35117088,3758.1,3757.8,0.6652962]
[1641077799454,0.69478783,3758.0,3757.9,0.66529]
[1641077800183,0.69478783,3758.0,3757.6,0.6653237]
[1641077800384,0.69478783,3758.0,3757.6,1.30790883]
[1641077800886,0.69478783,3758.0,3757.5,2.63847583]
[1641077801083,0.69478783,3758.0,3757.6,0.3]
[1641077801283,0.69478783,3758.0,3757.6,0.96534]
[1641077802083,0.69478783,3758.0,3757.6,0.66534]
[1641077802283,0.69478783,3758.0,3757.6,1.3306656]
[1641077802984,0.69478783,3758.0,3757.7,1.30790883]
[1641077803185,0.69478783,3758.0,3757.6,2.63857443]
[1641077804433,0.69478783,3758.0,3757.7,1.30790883]
[1641077805635,0.69478783,3758.0,3757.7,0.60800883]
[1641077805838,0.69478783,3758.0,3757.4,2.83814978]
[1641077806237,0.69478783,3758.0,3757.6,0.6653256]
[1641077807285,1.80896909,3758.6,3757.8,1.33049]
[1641077807486,1.80896909,3758.6,3758.1,0.6651709]
[1641077807692,2.46629638,3759.5,3758.1,0.3]
[1641077807885,2.46629638,3759.5,3758.1,1.2978]
[1641077808286,0.0609,3759.6,3758.7,0.66515]
[1641077808485,2.46629638,3759.7,3758.7,0.66515]
[1641077808685,0.66517,3759.6,3758.7,0.66515]
[1641077808887,2.46629638,3759.7,3758.7,0.66515]
[1641077809288,0.0569,3759.9,3758.7,0.66515]
[1641077809889,0.13819997,3760.0,3758.8,1.3300938]
[1641077810091,0.13819997,3760.0,3759.4,0.66503]
[1641077811137,0.13819997,3760.0,3759.1,1.3301238]
[1641077816191,0.13819997,3760.0,3759.1,0.66507]
[1641077818527,0.13819997,3760.0,3759.4,0.66508]
[1641077819229,0.13819997,3760.0,3759.3,0.6650797]
[1641077820431,0.13819997,3760.0,3759.6,0.66506]
[1641077820630,0.13819997,3760.0,3759.3,0.6650797]
[1641077822486,0.13819997,3760.0,3759.4,0.66508]
[1641077823584,0.6945082,3759.9,3759.4,0.66508]
[1641077825391,0.6945082,3759.9,3759.5,0.66505]
[1641077827039,0.6945082,3759.9,3759.5,0.96505]
[1641077827240,0.6945082,3759.9,3759.7,0.66494]
[1641077828348,0.6945082,3759.9,3759.7,0.96494]
[1641077828540,0.6945082,3759.9,3759.7,1.9299]
[1641077830188,0.6945082,3759.9,3759.8,8.87607876]
[1641077830994,0.6945082,3759.9,3759.8,13.05]
[1641077830995,0.06499201,3759.9,3759.8,13.05]
[1641077831192,0.06498567,3760.9,3759.9,11.7149]
[1641077831392,0.06498567,3760.9,3760.4,0.66473]
[1641077831597,0.06498567,3760.9,3760.4,16.96773]
[1641077831893,0.06498567,3760.9,3760.4,18.1747]
[1641077832092,0.06498567,3760.9,3760.4,18.4747]
[1641077832293,0.06498567,3760.9,3760.6,1.3293786]
[1641077832495,1.13677984,3761.7,3760.8,15.62]
[1641077832694,1.13677984,3761.7,3760.9,0.383]
[1641077833093,1.13677984,3761.7,3760.9,1.983]
[1641077833293,1.13677984,3761.7,3761.1,0.6645942]
[1641077833535,1.13677984,3761.7,3761.2,2.45342289]
[1641077833830,1.13677984,3761.7,3761.2,3.41799289]
[1641077834030,1.13677984,3761.7,3761.2,4.31629289]
[1641077834229,1.13677984,3761.7,3761.2,3.65172289]
[1641077834430,1.13677984,3761.7,3761.2,19.93629289]
[1641077834649,1.13677984,3761.7,3761.4,0.6645677]
[1641077834832,1.13677984,3761.7,3761.5,2.58043756]
[1641077835030,1.13677984,3761.7,3761.5,3.18043756]
[1641077835232,1.13677984,3761.7,3761.6,14.03375384]
[1641077835632,1.13677984,3761.7,3761.6,14.33375384]
[1641077846612,1.13677984,3761.7,3761.6,15.33375384]
[1641077847209,0.06498176,3762.6,3762.1,1.32884]
[1641077847410,0.06498176,3762.6,3762.1,3.5512638]
[1641077847608,0.06498176,3762.6,3762.2,0.3]
[1641077847809,0.06498176,3762.6,3762.1,2.8224346]
[1641077848408,0.06498176,3762.6,3762.3,1.9932696]
[1641077848640,0.06498176,3762.6,3762.3,4.8725595]
[1641077849235,0.0586,3763.3,3762.3,1.9932596]
[1641077849432,0.0586,3763.3,3762.3,4.17061529]
[1641077849635,6.15,3763.6,3762.8,0.66445]
[1641077859788,6.15,3763.6,3762.5,0.66449]
[1641077859988,1.0,3763.5,3762.5,0.66449]
[1641077862394,1.0,3763.5,3762.5,1.3289587]
[1641077864853,0.95,3763.5,3762.5,1.3289587]
[1641077867488,6.81446,3763.6,3762.5,1.3289587]
[1641077870593,6.81446,3763.6,3761.6,3.205]
[1641077870594,0.66455,3763.1,3761.6,3.205]
[1641077870798,0.66455,3763.1,3760.7,2.75365535]
[1641077870799,0.383,3763.0,3761.1,3.78860108]
[1641077871056,1.32946,3762.9,3761.1,2.45934388]
[1641077871258,2.84234388,3762.8,3761.0,2.08155776]
[1641077871651,1.0,3762.7,3761.0,2.08155776]
[1641077871851,0.6647227,3762.4,3761.0,2.08155776]
[1641077872451,0.6647227,3762.4,3761.1,0.66473]
[1641077872655,0.66473,3762.0,3761.1,0.66473]
[1641077874797,2.41928466,3761.9,3761.0,2.08155776]
[1641077874998,0.66484,3761.5,3760.7,4.0925]
[1641077875199,0.66484,3761.5,3760.7,0.3]
[1641077875403,0.66484,3761.5,3760.4,1.32957]
[1641077876202,0.66484,3761.5,3760.5,0.66482]
[1641077876406,31.32779349,3761.7,3760.5,1.3296205]
[1641077876601,31.32779349,3761.7,3760.5,0.6648005]
[1641077876801,3.07857453,3761.6,3760.5,0.6648005]
[1641077877200,31.32779349,3761.7,3760.5,0.6648005]
[1641077877600,1.0,3761.6,3760.5,0.6648005]
[1641077878208,1.34398889,3761.5,3760.5,0.6648005]
[1641077878403,1.34398889,3761.5,3760.5,1.3296205]
[1641077879441,4.0787164,3761.6,3760.5,1.3296205]
[1641077880844,5.42270529,3761.6,3760.5,1.3296205]
[1641077882895,4.42270529,3761.6,3760.7,0.66479]
[1641077883094,4.42270529,3761.6,3760.8,0.3]
[1641077883300,4.42270529,3761.6,3760.6,2.54145464]
[1641077883693,3.0787164,3761.6,3760.6,2.54145464]
[1641077884494,3.0787164,3761.6,3761.1,0.66468]
[1641077884696,1.34398889,3761.9,3761.1,1.9940503]
[1641077884895,1.34398889,3761.9,3761.1,0.6647003]
[1641077885095,1.34398889,3761.9,3760.7,1.32934]
[1641077885499,1.34398889,3761.9,3760.7,1.62934]
[1641077886146,1.34398889,3761.9,3760.9,0.6647319]
[1641077886543,1.34398889,3761.9,3761.1,0.66472]
[1641077886942,1.34398889,3761.9,3760.6,1.32948]
[1641077887445,26.66757415,3761.8,3760.6,1.32948]
[1641077887643,1.0,3761.7,3760.6,1.32948]
[1641077888044,1.34398889,3761.5,3760.6,1.32948]
[1641077888343,1.34398889,3761.5,3760.6,1.9942786]
[1641077888547,2.34398889,3761.7,3760.6,1.9942786]
[1641077888764,4.42270529,3761.7,3760.6,1.9942786]
[1641077889349,4.42270529,3761.7,3760.6,1.32948]
[1641077889547,26.36757415,3761.8,3760.9,0.6647812]
[1641077890213,26.36757415,3761.8,3760.8,0.6648]
[1641077890214,27.03240415,3761.8,3760.8,0.6648]
[1641077891221,27.03240415,3761.8,3760.6,1.9943036]
[1641077891418,27.03240415,3761.8,3760.3,6.6399371]
[1641077891716,27.03240415,3761.8,3760.4,0.66489]
[1641077892717,0.66489,3761.4,3760.4,0.66489]
[1641077895964,0.66489,3761.4,3760.2,0.6649119]
[1641077896163,0.66489,3761.4,3760.0,1.32977]
[1641077897164,0.66489,3761.4,3759.8,1.32986]
[1641077897401,2.98901995,3761.5,3759.6,3.8454]
[1641077897402,0.665,3760.8,3759.6,3.8454]
[1641077897700,0.665,3760.8,3759.4,1.32998]
[1641077897901,0.665,3760.8,3759.4,1.92998]
[1641077898699,0.6650693,3760.7,3759.4,1.92998]
[1641077898905,0.6650693,3760.7,3759.4,0.6]
[1641077898906,0.6651,3760.2,3759.4,0.6]
[1641077899299,0.6651,3760.2,3759.2,0.13819997]
[1641077900302,0.6651,3760.2,3759.1,0.04742332]
[1641077901746,0.69451396,3760.1,3759.1,0.04742332]
[1641077901945,0.66516,3759.9,3759.1,0.04742332]
[1641077902946,0.66516,3759.9,3758.9,1.6301557]
[1641077903547,0.66516,3759.9,3758.9,0.3]
[1641077911848,0.66516,3759.9,3758.9,0.66515]
[1641077913294,0.66516,3759.9,3758.6,3.6311]
[1641077913495,1.3303711,3759.9,3758.6,3.6311]
[1641077913694,0.66522,3759.6,3758.6,3.6311]
[1641077913893,0.66522,3759.6,3758.5,3.1567]
[1641077914496,0.66522,3759.6,3758.6,0.6652]
[1641077914698,0.66522,3759.6,3758.5,3.1567]
[1641077914897,32.82538347,3759.5,3758.5,3.1567]
[1641077915097,1.66525,3759.4,3758.5,3.1567]
[1641077915696,1.0,3759.4,3758.6,0.6652]
[1641077917248,32.82538347,3759.5,3758.6,0.6652]
[1641077918748,32.82538347,3759.5,3758.3,1.33035]
[1641077918950,32.82538347,3759.5,3758.3,1.63035]
[1641077919447,0.66521,3759.4,3758.3,1.63035]
[1641077922105,0.66521,3759.4,3758.2,0.7265011]
[1641077922106,1.66521,3759.4,3758.2,0.0613]
[1641077922709,1.66521,3759.4,3758.1,0.66524]
[1641077922710,1.66521,3759.4,3758.1,2.9062781]
[1641077923005,1.66521,3759.4,3758.1,0.66524]
[1641077924352,2.3304742,3759.4,3758.1,0.66524]
[1641077924554,2.3304742,3759.4,3758.0,7.0515]
[1641077924555,0.66528,3759.0,3758.0,7.0515]
[1641077924757,0.66528,3759.0,3757.9,0.66528]
[1641077925261,2.48799215,3758.9,3757.8,0.0594]
[1641077925460,1.9961363,3758.8,3757.6,7.0516]
[1641077925656,0.6654,3758.3,3757.6,7.0516]
[1641077925960,0.6654,3758.3,3757.4,1.56071583]
[1641077926357,0.6654,3758.3,3757.4,0.13819997]
[1641077926756,0.6654,3758.3,3757.0,0.0589]
[1641077926956,0.6654,3758.3,3756.9,9.25344146]
[1641077927399,0.6654,3758.3,3757.1,1.33072]
[1641077927998,0.6654,3758.3,3757.1,1.9961563]
[1641077929398,0.6654,3758.3,3757.2,0.66544]
[1641077930404,2.43951046,3758.2,3757.2,0.66544]
[1641077930602,3.43951046,3758.2,3757.2,0.66544]
[1641077931047,1.0,3758.2,3757.2,0.66544]
[1641077931451,2.46564818,3758.2,3757.2,0.66544]
[1641077931648,2.40233063,3758.2,3757.2,0.66544]
[1641077931946,3.44450869,3758.2,3757.2,0.66544]
[1641077932148,0.69488155,3758.1,3757.2,0.66544]
[1641077932647,0.69488155,3758.1,3757.0,0.66546]
[1641077932847,3.12824644,3758.1,3757.0,0.66546]
[1641077933052,0.69488155,3758.1,3757.0,0.66546]
[1641077933246,0.66546,3758.0,3757.0,0.66546]
[1641077933848,0.66546,3758.0,3757.8,1.32607876]
[1641077934550,3.07936302,3758.0,3757.8,1.32607876]
[1641077935002,0.69488155,3758.1,3757.8,1.32607876]
[1641077935401,0.69488155,3758.1,3757.8,1.92607876]
[1641077935608,0.69488155,3758.1,3757.8,1.32607876]
[1641077935806,0.69488155,3758.1,3757.6,1.32607876]
[1641077936504,0.69488155,3758.1,3757.4,0.01228433]
[1641077936803,0.69488155,3758.1,3757.5,0.6653513]
[1641077937404,0.69488155,3758.1,3757.4,0.01228433]
[1641077937405,0.69488155,3758.1,3757.6,0.66534]
[1641077939648,0.69488155,3758.1,3757.7,0.665352]
[1641077939848,0.69488155,3758.1,3757.8,0.66536]
[1641077945294,0.69488155,3758.1,3757.3,1.32607876]
[1641077945499,2.36409651,3758.0,3757.3,1.32607876]
[1641077945693,2.36411411,3758.0,3757.3,1.32607876]
[1641077946152,0.69488155,3758.1,3757.1,0.66548]
[1641077946345,2.46129367,3758.0,3757.1,0.66548]
[1641077946545,0.69488155,3758.1,3757.1,0.66548]
[1641077946747,3.12369649,3758.0,3757.1,0.66548]
[1641077946944,3.07885406,3758.0,3757.1,0.66548]
[1641077947145,3.09982342,3758.0,3757.1,0.66548]
[1641077947347,2.39081172,3757.9,3757.1,0.66548]
[1641077947551,3.06118458,3758.0,3756.9,4.5455]
[1641077947749,3.04093939,3758.0,3756.9,4.5455]
[1641077947949,3.04093939,3758.0,3756.9,4.8455]
[1641077948153,2.52536993,3757.9,3756.9,4.8455]
[1641077948551,0.6655,3757.7,3756.9,4.8455]
[1641077949151,0.6655,3757.7,3756.9,1.6309]
[1641077951001,2.41724998,3757.6,3756.8,1.32607876]
[1641077951205,0.66558,3757.2,3756.8,1.32607876]
[1641077952304,0.66558,3757.2,3756.6,1.32607876]
[1641077953652,0.66558,3757.2,3756.5,1.32607876]
[1641077956451,0.66558,3757.2,3756.4,2.29164876]
[1641077957051,0.66558,3757.2,3757.0,1.32607876]
[1641077957715,10.15579097,3757.1,3757.0,1.32607876]
[1641077958116,2.35579097,3757.1,3757.0,1.32607876]
[1641077958313,2.35579097,3757.1,3756.7,1.32607876]
[1641077958515,0.66566,3756.9,3756.7,1.32607876]
[1641077960218,0.61566,3756.9,3756.7,1.32607876]
[1641077964152,0.61566,3756.9,3756.6,1.32607876]
[1641077964804,0.61566,3756.9,3756.5,1.32607876]
[1641077965699,0.61566,3756.9,3756.0,0.01212162]
[1641077965700,0.61566,3756.9,3756.4,1.32607876]
[1641077966906,1.95964889,3756.9,3756.4,1.32607876]
[1641077968952,1.95964889,3756.9,3756.3,1.32607876]
[1641077970553,1.34398889,3756.8,3756.2,1.32607876]
[1641077971254,1.95964889,3756.9,3756.3,1.32607876]
[1641077974926,1.95964889,3756.9,3756.4,1.32607876]
[1641077974927,0.61566,3756.9,3756.4,1.32607876]
[1641077976560,2.96042731,3756.9,3756.4,1.32607876]
[1641077976860,0.61566,3756.9,3756.4,1.32607876]
[1641077977259,0.61566,3756.9,3756.1,0.96562]
[1641077981505,0.61566,3756.9,3756.3,1.32607876]
[1641077981506,1.95964889,3756.9,3756.3,1.32607876]
[1641077982107,1.95964889,3756.9,3756.4,1.32607876]
[1641077982308,1.34398889,3756.9,3756.5,2.24070982]
[1641077982713,2.03901793,3757.1,3756.5,4.56678858]
[1641077982908,2.03901793,3757.1,3757.0,12.85]
[1641077982909,1.61471793,3757.1,3757.0,12.85]
[1641077983107,3.10455903,3757.3,3757.1,27.47]
[1641077983308,1.80896909,3757.4,3757.1,27.47]
[1641077983309,1.36155181,3757.4,3757.2,14.9608384]
[1641077983563,1.80896909,3757.6,3757.4,11.9]
[1641077983764,1.80896909,3757.6,3757.5,14.76079411]
[1641077983965,1.80896909,3757.6,3757.5,15.06079411]
[1641077984264,1.80896909,3757.6,3757.5,15.36079411]
[1641077984564,4.53182065,3758.8,3757.5,15.36079411]
[1641077984565,1.80896909,3758.8,3757.5,15.36079411]
[1641077984767,1.80896909,3758.8,3758.1,0.66517]
[1641077984963,1.80896909,3758.8,3758.2,1.3303157]
[1641077985164,1.80896909,3759.0,3758.2,1.3303157]
[1641077986166,1.80896909,3759.0,3758.5,0.6651659]
[1641077987707,1.80896909,3759.0,3758.4,0.66517]
[1641077987914,1.80896909,3759.0,3758.4,1.3303368]
[1641077988107,1.80896909,3759.0,3758.6,0.66516]
[1641077989008,1.80896909,3759.0,3758.3,1.33034]
[1641077989207,1.80896909,3759.2,3758.3,1.33034]
[1641077989806,1.80896909,3759.2,3758.3,3.51649664]
[1641077990007,1.80896909,3759.2,3758.3,1.33034]
[1641077990607,1.80896909,3759.2,3758.3,3.52354077]
[1641077990810,2.47419909,3759.2,3758.3,1.33034]
[1641077991652,1.80896909,3759.1,3758.3,1.33034]
[1641077991853,1.80896909,3759.1,3758.2,0.6652117]
[1641077992455,1.80896909,3759.1,3758.3,2.21265743]
[1641077992654,1.80896909,3759.1,3758.2,0.6652117]
[1641077992854,1.80896909,3759.1,3758.2,2.90679483]